bitfinex/quotes_ETHUSD_20230109
["timestamp","ask_amount","ask_price","bid_price","bid_amount"]
[1673292617356,11.7283,1332.8,1332.6,29.14339752]
[1673292617780,11.7283,1332.8,1332.6,36.64751752]
[1673292618377,11.7283,1332.8,1332.6,21.63927752]
[1673292618634,19.23136,1332.8,1332.6,14.13516752]
[1673292618827,11.7283,1332.8,1332.6,14.13516752]
[1673292619159,19.2313,1332.8,1332.6,14.13516752]
[1673292619894,19.2313,1332.8,1332.6,21.63926752]
[1673292620476,19.23131,1332.8,1332.6,21.63926752]
[1673292621336,11.7283,1332.8,1332.6,21.63926752]
[1673292621587,11.7283,1332.8,1332.6,14.13516752]
[1673292621772,19.23151,1332.8,1332.6,14.13516752]
[1673292622755,19.23151,1332.8,1332.6,17.93282816]
[1673292622756,0.05,1332.7,1332.6,17.93282816]
[1673292623091,0.066,1332.8,1332.6,45.08930464]
[1673292623245,11.3295,1333.0,1332.7,5.13966064]
[1673292623461,11.3295,1333.0,1332.8,40.30630064]
[1673292623462,11.3955,1333.0,1332.8,40.30630064]
[1673292623661,11.3955,1333.0,1332.8,45.1873775]
[1673292624658,0.066,1333.0,1332.9,29.80495064]
[1673292624875,2.79447525,1333.2,1332.9,31.20795064]
[1673292625090,3.18891243,1333.2,1333.0,3.79766064]
[1673292625236,3.18891243,1333.2,1333.0,11.29915064]
[1673292625601,3.18891243,1333.2,1333.0,11.36515064]
[1673292625602,2.79447525,1333.2,1333.0,11.36515064]
[1673292625815,3.189063,1333.2,1333.0,18.86702064]
[1673292627077,3.189063,1333.2,1333.0,3.86366064]
[1673292627078,1.11746154,1333.1,1333.0,3.86366064]
[1673292627300,1.68026154,1333.1,1333.0,3.79766064]
[1673292627446,3.751863,1333.1,1333.0,3.79766064]
[1673292628127,2.63440146,1333.1,1333.0,3.79766064]
[1673292628286,3.75198771,1333.1,1333.0,3.79766064]
[1673292628501,2.63440146,1333.1,1332.9,0.08434609]
[1673292628722,1.11750535,1333.0,1332.9,3.81600673]
[1673292629348,1.11750535,1333.0,1332.9,11.31843673]
[1673292629558,1.11750535,1333.0,1332.9,18.88686673]
[1673292630349,1.51237323,1333.0,1332.9,18.88686673]
[1673292630547,1.51237323,1333.0,1332.9,0.066]
[1673292630758,1.51237323,1333.0,1332.8,21.56859]
[1673292630963,1.51237323,1333.0,1332.8,25.36625064]
[1673292631622,1.51237323,1333.0,1332.8,40.37225064]
[1673292632091,1.51237323,1333.0,1332.9,7.51274147]
[1673292632301,4.54579923,1333.1,1332.9,7.57874147]
[1673292632302,5.66330458,1333.1,1332.9,7.57874147]
[1673292632551,1.5124977,1333.0,1332.9,7.57874147]
[1673292632956,1.5124977,1333.0,1332.9,15.08117147]
[1673292633368,1.11750535,1333.0,1332.9,15.08117147]
[1673292633592,1.5124977,1333.0,1332.9,15.08117147]
[1673292634404,1.5124977,1333.0,1332.9,15.0789295]
[1673292634625,1.11750535,1333.0,1332.9,26.37902014]
[1673292634960,1.68030535,1333.1,1333.0,3.5]
[1673292635182,1.68030535,1333.1,1333.0,26.00561]
[1673292635183,2.07511462,1333.1,1333.0,26.00561]
[1673292635404,2.07511462,1333.1,1333.0,26.07161]
[1673292636341,1.51231462,1333.1,1333.0,26.07161]
[1673292636550,1.51231462,1333.1,1333.0,22.57161]
[1673292637810,1.51231462,1333.1,1333.0,7.56787]
[1673292638685,1.51231462,1333.1,1333.0,22.57161]
[1673292640241,3.42321906,1333.2,1333.0,22.57161]
[1673292640457,3.35721906,1333.2,1333.0,26.07161]
[1673292640798,26.01491906,1333.3,1333.0,55.61535849]
[1673292641139,2.86051906,1333.3,1333.2,15.0015]
[1673292641316,1.51226678,1333.3,1333.2,26.36591064]
[1673292641503,1.51226678,1333.3,1333.2,20.29229262]
[1673292641916,1.51226678,1333.3,1333.2,27.79304262]
[1673292642126,1.51226678,1333.3,1333.2,18.87330725]
[1673292643324,1.51226678,1333.3,1333.2,26.37405725]
[1673292643537,1.51226678,1333.3,1333.2,40.87330725]
[1673292643855,2.30561371,1333.4,1333.2,40.87330725]
[1673292643856,3.42311906,1333.4,1333.2,48.37405725]
[1673292644023,3.35711906,1333.4,1333.2,48.37405725]
[1673292644230,1.68010535,1333.4,1333.2,40.87330725]
[1673292644461,1.68010535,1333.4,1333.2,48.37405725]
[1673292644776,1.68010535,1333.4,1333.2,53.96154098]
[1673292644997,0.5626,1333.4,1333.2,53.96154098]
[1673292645735,0.5626,1333.4,1333.3,3.79766064]
[1673292645953,1.68010535,1333.4,1333.3,26.29820064]
[1673292646108,0.5626,1333.4,1333.3,26.36420064]
[1673292646792,0.5626,1333.4,1333.3,18.86402064]
[1673292647412,25.26095751,1333.5,1333.3,11.36384064]
[1673292647806,1.11750535,1333.4,1333.3,11.36384064]
[1673292648037,3.18844001,1333.4,1333.3,0.066]
[1673292648220,18.18768001,1333.4,1333.2,22.07414661]
[1673292648579,18.8481401,1333.4,1333.2,22.07414661]
[1673292649214,3.8489001,1333.4,1333.2,22.07414661]
[1673292649374,3.7799541,1333.4,1333.2,22.07414661]
[1673292650046,10.16522475,1333.4,1333.2,22.07414661]
[1673292650243,10.23122475,1333.4,1333.2,22.07414661]
[1673292650450,1.9519151,1333.3,1333.2,22.07414661]
[1673292651309,1.9519151,1333.3,1333.2,22.066]
[1673292651520,0.3939151,1333.3,1333.2,22.066]
[1673292655354,17.73115475,1333.4,1333.2,22.066]
[1673292655666,10.23117475,1333.4,1333.2,29.5667]
[1673292656287,0.39424366,1333.3,1333.2,29.5667]
[1673292657943,0.39424366,1333.3,1333.2,22.066]
[1673292658172,0.39424366,1333.3,1333.2,29.56675]
[1673292658379,0.39424366,1333.3,1333.2,22.066]
[1673292659350,3.18714123,1333.3,1333.2,22.066]
[1673292659564,1.51012752,1333.3,1333.2,29.56675]
[1673292661341,3.18714123,1333.3,1333.2,29.56675]
[1673292661537,3.18714123,1333.3,1333.2,22.066]
[1673292662141,2.07125737,1333.3,1333.2,22.066]
[1673292663300,2.07325737,1333.3,1333.2,29.56475]
[1673292663511,3.18813756,1333.3,1333.2,29.56675]
[1673292663835,2.7938939,1333.3,1333.2,29.56675]
[1673292664044,3.18813756,1333.3,1333.2,22.066]
[1673292664284,2.07125737,1333.3,1333.2,22.066]
[1673292664913,3.18796717,1333.3,1333.2,37.0675]
[1673292665120,2.79372351,1333.3,1333.2,37.0675]
[1673292665448,3.18796717,1333.3,1333.2,37.0675]
[1673292665844,1.51095346,1333.3,1333.2,37.0675]
[1673292667830,3.84810455,1333.4,1333.2,52.08143309]
[1673292668034,2.79372351,1333.4,1333.2,52.08143309]
[1673292668280,2.79372351,1333.4,1333.2,38.08143309]
[1673292668281,1.1167098,1333.3,1333.2,38.08143309]
[1673292668825,1.1167098,1333.3,1333.2,43.2895764]
[1673292669501,1.1167098,1333.3,1333.2,35.7888264]
[1673292670618,1.51143215,1333.3,1333.2,27.7888264]
[1673292671133,1.1167098,1333.3,1333.2,35.2895764]
[1673292671347,2.79372351,1333.4,1333.2,35.2895764]
[1673292671503,1.1167098,1333.3,1333.2,35.2895764]
[1673292671714,2.79372351,1333.4,1333.2,35.2895764]
[1673292671923,1.1167098,1333.3,1333.2,43.2895764]
[1673292673242,2.79372351,1333.4,1333.2,43.2895764]
[1673292673408,3.18835292,1333.4,1333.2,43.2895764]
[1673292673621,1.1167098,1333.3,1333.2,43.2895764]
[1673292673862,1.1167098,1333.3,1333.2,47.08723704]
[1673292674125,2.0716185,1333.4,1333.2,47.08723704]
[1673292674126,2.79372351,1333.4,1333.2,47.08723704]
[1673292674397,1.1167098,1333.3,1333.2,39.58648704]
[1673292675147,2.79372351,1333.4,1333.2,47.08723704]
[1673292675301,1.1167098,1333.4,1333.2,47.08723704]
[1673292675506,3.18839477,1333.4,1333.2,47.08723704]
[1673292675755,1.1167098,1333.4,1333.2,47.08723704]
[1673292675965,3.18839571,1333.4,1333.2,47.08723704]
[1673292677134,3.18839571,1333.4,1333.2,39.58648704]
[1673292678598,3.18839571,1333.4,1333.3,3.79766064]
[1673292678795,3.18839571,1333.4,1333.3,29.79820064]
[1673292679002,1.511382,1333.4,1333.3,29.86420064]
[1673292679240,3.18839571,1333.4,1333.3,29.86420064]
[1673292679448,1.511382,1333.4,1333.3,26.36420064]
[1673292680237,3.18839571,1333.4,1333.3,31.07275334]
[1673292680899,1.511382,1333.4,1333.3,45.07275334]
[1673292681109,1.513382,1333.4,1333.3,45.07075334]
[1673292681325,1.511382,1333.4,1333.3,45.07275334]
[1673292681716,1.511382,1333.4,1333.3,53.07275334]
[1673292682704,3.18839571,1333.4,1333.3,53.07275334]
[1673292682864,3.19039571,1333.4,1333.3,53.07075334]
[1673292683071,3.18839571,1333.4,1333.3,53.07275334]
[1673292684179,1.511382,1333.4,1333.3,53.07275334]
[1673292685196,1.511382,1333.4,1333.3,48.36420064]
[1673292686012,1.511382,1333.4,1333.3,48.26420064]
[1673292686759,3.18839571,1333.4,1333.3,48.26420064]
[1673292687444,1.511382,1333.4,1333.3,48.26420064]
[1673292687753,3.18839571,1333.4,1333.3,48.26420064]
[1673292687907,1.511382,1333.4,1333.3,48.26420064]
[1673292688119,3.18839571,1333.4,1333.3,48.26420064]
[1673292688586,1.511382,1333.4,1333.3,48.26420064]
[1673292688971,1.513382,1333.4,1333.3,48.26220064]
[1673292689184,1.511382,1333.4,1333.3,48.26420064]
[1673292689839,1.511382,1333.4,1333.3,54.36275334]
[1673292691089,3.18839571,1333.4,1333.3,54.36275334]
[1673292691508,1.511382,1333.4,1333.3,54.36275334]
[1673292692665,2.92768092,1333.5,1333.3,61.86293334]
[1673292692881,1.18466721,1333.5,1333.4,26.29885347]
[1673292693125,1.18466721,1333.5,1333.4,32.56121209]
[1673292693315,1.57934023,1333.5,1333.4,32.56121209]
[1673292694494,3.25635394,1333.5,1333.4,32.56121209]
[1673292694874,1.57934023,1333.5,1333.4,32.56121209]
[1673292695084,2.86168092,1333.5,1333.4,32.56121209]
[1673292695437,2.13964414,1333.5,1333.4,10.06235209]
[1673292695649,4.37962966,1333.5,1333.4,11.36561347]
[1673292696393,4.37962966,1333.5,1333.4,3.86599347]
[1673292696621,5.50259785,1333.5,1333.3,22.066]
[1673292696910,3.18963889,1333.4,1333.3,25.86366064]
[1673292697125,3.18966125,1333.4,1333.3,40.86402064]
[1673292697294,3.18966125,1333.4,1333.3,48.36420064]
[1673292697492,2.07165254,1333.4,1333.3,48.36420064]
[1673292701405,3.19015264,1333.4,1333.3,48.36420064]
[1673292702251,1.51317312,1333.4,1333.3,48.36420064]
[1673292702897,3.19015264,1333.4,1333.3,48.36420064]
[1673292707508,1.51317312,1333.4,1333.3,48.36420064]
[1673292708333,1.51317312,1333.4,1333.3,57.41738811]
[1673292708334,1.1185001,1333.4,1333.3,57.41738811]
[1673292708551,1.18645751,1333.5,1333.4,1.57693008]
[1673292708813,1.24894468,1333.6,1333.4,8.70119757]
[1673292709026,13.24842245,1333.7,1333.5,32.2678698]
[1673292709027,11.07443693,1333.7,1333.5,32.2678698]
[1673292709188,11.07443693,1333.7,1333.6,33.79166064]
[1673292709394,2.10991244,1333.7,1333.6,33.85766064]
[1673292709615,0.06795741,1333.7,1333.6,39.59419601]
[1673292710039,0.3666581,1333.7,1333.6,39.59419601]
[1673292710909,0.06795741,1333.7,1333.6,39.59419601]
[1673292711272,0.36664808,1333.7,1333.6,39.59419601]
[1673292715956,25.79672693,1333.7,1333.6,3.86366064]
[1673292716278,4.34961312,1333.7,1333.6,3.79766064]
[1673292716438,2.0436276,1333.7,1333.6,3.79766064]
[1673292716653,4.28361312,1333.7,1333.6,3.79766064]
[1673292717056,9.5415576,1333.7,1333.6,3.79766064]
[1673292717267,4.34961312,1333.7,1333.6,3.79766064]
[1673292717524,4.28361312,1333.7,1333.6,3.79766064]
[1673292719730,17.6024936,1333.7,1333.5,22.066]
[1673292719945,1.97345774,1333.6,1333.5,25.86366064]
[1673292720397,1.97345774,1333.6,1333.5,40.86178064]
[1673292721294,4.21344326,1333.6,1333.5,40.86178064]
[1673292721521,1.97345774,1333.6,1333.5,40.86178064]
[1673292721725,1.97345774,1333.6,1333.5,33.36272064]
[1673292722556,1.97345774,1333.6,1333.5,40.86178064]
[1673292723282,1.97345774,1333.6,1333.5,33.36272064]
[1673292725072,4.21344326,1333.6,1333.5,40.86178064]
[1673292725281,3.0904989,1333.6,1333.5,40.86178064]
[1673292725919,3.0904989,1333.6,1333.5,48.36084064]
[1673292726123,3.0904989,1333.6,1333.5,40.86178064]
[1673292726350,1.41573183,1333.6,1333.5,40.86178064]
[1673292728477,1.41573183,1333.6,1333.5,18.86178064]
[1673292728639,1.41573183,1333.6,1333.5,40.86178064]
[1673292728849,3.0904989,1333.6,1333.5,40.86178064]
[1673292729291,1.97345774,1333.6,1333.5,40.86178064]
[1673292731166,1.97345774,1333.6,1333.5,40.85844238]
[1673292731437,2.79127652,1333.6,1333.5,40.85844238]
[1673292731640,1.97345774,1333.6,1333.5,40.85844238]
[1673292732005,2.79129426,1333.6,1333.5,40.85844238]
[1673292732217,1.97345774,1333.6,1333.5,40.85844238]
[1673292732546,1.67476707,1333.6,1333.5,40.85844238]
[1673292732780,1.97345774,1333.6,1333.5,40.85844238]
[1673292733383,3.09006177,1333.6,1333.5,40.85844238]
[1673292733607,2.79126733,1333.6,1333.5,40.85844238]
[1673292733953,3.089958,1333.6,1333.5,40.85844238]
[1673292736633,3.089958,1333.6,1333.5,33.35938238]
[1673292737524,1.41519093,1333.6,1333.5,33.35938238]
[1673292738046,3.089958,1333.6,1333.5,33.35938238]
[1673292738368,1.41519093,1333.6,1333.5,33.35938238]
[1673292738744,3.089958,1333.6,1333.5,33.35938238]
[1673292739189,3.089958,1333.6,1333.5,40.85844238]
[1673292739408,2.79126733,1333.6,1333.5,33.35938238]
[1673292739714,3.089958,1333.6,1333.5,33.35938238]
[1673292742356,4.21344326,1333.6,1333.5,33.35938238]
[1673292742559,1.97345774,1333.6,1333.5,33.35938238]
[1673292743094,4.21344326,1333.6,1333.5,33.35938238]
[1673292743269,4.21544326,1333.6,1333.5,33.35738238]
[1673292743480,4.21344326,1333.6,1333.5,33.35938238]
[1673292744349,4.21344326,1333.6,1333.5,40.85844238]
[1673292744518,1.97345774,1333.6,1333.5,40.85844238]
[1673292744723,4.21344326,1333.6,1333.5,40.85844238]
[1673292745786,1.97345774,1333.6,1333.5,48.35750238]
[1673292746018,3.09004293,1333.6,1333.5,40.85844238]
[1673292746354,1.97345774,1333.6,1333.5,40.85844238]
[1673292746967,1.97345774,1333.6,1333.5,48.35750238]
[1673292747149,1.97345774,1333.6,1333.5,40.85844238]
[1673292747591,2.79156261,1333.6,1333.5,40.85844238]
[1673292747812,3.09025328,1333.6,1333.5,40.85844238]
[1673292748117,3.09025328,1333.6,1333.5,48.35750238]
[1673292748369,1.41548621,1333.6,1333.5,40.85844238]
[1673292748581,1.41548621,1333.6,1333.5,38.19733781]
[1673292748964,1.41548621,1333.6,1333.5,45.69639781]
[1673292749173,3.09025328,1333.6,1333.5,45.69639781]
[1673292750130,3.09025328,1333.6,1333.5,38.19733781]
[1673292750950,3.09025328,1333.6,1333.5,45.69639781]
[1673292751215,1.41548621,1333.6,1333.5,53.19545781]
[1673292751580,1.41548621,1333.6,1333.5,45.69639781]
[1673292751795,1.11679554,1333.6,1333.5,60.69451781]
[1673292752009,2.85952002,1333.7,1333.5,56.43773297]
[1673292752244,2.85988342,1333.7,1333.6,12.94143394]
[1673292752454,3.15830429,1333.7,1333.6,35.49959568]
[1673292754239,1.48353722,1333.7,1333.6,35.49959568]
[1673292754879,1.18511635,1333.7,1333.6,35.49959568]
[1673292755068,1.52688191,1333.7,1333.6,35.49959568]
[1673292755631,1.52689316,1333.7,1333.6,35.49959568]
[1673292756204,1.52689316,1333.7,1333.6,37.18559568]
[1673292756835,0.40973422,1333.7,1333.6,37.18559568]
[1673292757254,0.40577263,1333.7,1333.6,44.68409568]
[1673292757971,0.40577263,1333.7,1333.6,37.18559568]
[1673292759289,0.40577263,1333.7,1333.6,33.68559568]
[1673292761404,0.40577263,1333.7,1333.6,35.37759568]
[1673292761563,0.40577263,1333.7,1333.6,42.87609568]
[1673292770956,0.40577263,1333.7,1333.6,39.49809568]
[1673292772218,0.40777263,1333.7,1333.6,39.49609568]
[1673292772383,0.40577263,1333.7,1333.6,39.49809568]
[1673292773232,0.40577263,1333.7,1333.6,40.02452568]
[1673292777383,0.40577263,1333.7,1333.6,41.71652568]
[1673292783044,0.40577263,1333.7,1333.6,43.230743]
[1673292783224,0.40577263,1333.7,1333.6,43.23073716]
[1673292784506,0.3897989,1333.7,1333.6,43.23073716]
[1673292784910,0.3897989,1333.7,1333.6,45.06294848]
[1673292785904,0.3897989,1333.7,1333.6,45.06305257]
[1673292786073,0.3897989,1333.7,1333.6,43.23073716]
[1673292786258,0.3897989,1333.7,1333.6,45.06302291]
[1673292786469,0.3897989,1333.7,1333.6,45.06301758]
[1673292787258,0.3897989,1333.7,1333.6,43.23073716]
[1673292788376,16.50117715,1333.7,1333.6,4.38675238]
[1673292788597,1.91110584,1333.7,1333.6,4.32409064]
[1673292788806,3.51987291,1333.7,1333.6,4.32409064]
[1673292789973,3.51987291,1333.7,1333.6,19.32109064]
[1673292790146,1.84510584,1333.7,1333.6,18.85732238]
[1673292790350,3.51987291,1333.7,1333.6,18.85732238]
[1673292790605,1.84510584,1333.7,1333.6,18.85732238]
[1673292790994,3.51987291,1333.7,1333.6,26.35582238]
[1673292791356,1.84510584,1333.7,1333.6,26.35582238]
[1673292791945,1.84510584,1333.7,1333.6,11.35882238]
[1673292792149,3.51987291,1333.7,1333.6,11.35882238]
[1673292792503,3.51987291,1333.7,1333.6,18.85732238]
[1673292792872,3.52077502,1333.7,1333.6,18.85732238]
[1673292793085,25.96644412,1333.7,1333.6,0.06066174]
[1673292793345,0.0429297,1333.5,1333.3,14.0]
[1673292793535,2.79041517,1333.4,1333.3,17.81372238]
[1673292793711,17.01327779,1333.4,1333.3,14.01606174]
[1673292793928,9.57965779,1333.4,1333.3,14.01606174]
[1673292794138,1.52020621,1333.4,1333.3,14.01606174]
[1673292794365,1.49722255,1333.4,1333.3,14.01606174]
[1673292794782,2.83159632,1333.5,1333.3,14.01606174]
[1673292795009,2.84534722,1333.5,1333.3,17.81372238]
[1673292796394,2.84534722,1333.5,1333.4,3.79766064]
[1673292796771,1.15734722,1333.5,1333.4,3.79766064]
[1673292797235,0.0429297,1333.5,1333.4,11.29728064]
[1673292797404,0.0429297,1333.5,1333.4,3.81372238]
[1673292797618,0.0429297,1333.5,1333.4,3.79766064]
[1673292798243,0.0429297,1333.5,1333.4,26.29652064]
[1673292798451,0.0429297,1333.5,1333.4,26.31258238]
[1673292798929,0.0429297,1333.5,1333.4,3.81372238]
[1673292799089,0.0429297,1333.5,1333.4,3.79766064]
[1673292799285,0.0429297,1333.5,1333.4,26.29652064]
[1673292799497,0.0429297,1333.5,1333.4,26.31258238]
[1673292800792,0.0429297,1333.5,1333.4,22.31296238]
[1673292801219,0.0429297,1333.5,1333.4,18.81296238]
[1673292801813,0.0429297,1333.5,1333.4,22.31296238]
[1673292802247,0.0429297,1333.5,1333.4,29.81258238]
[1673292803276,0.0429297,1333.5,1333.4,37.31220238]
[1673292803603,0.0429297,1333.5,1333.4,43.19339862]
[1673292803953,0.0429297,1333.5,1333.4,51.19339862]
[1673292807172,0.0429297,1333.5,1333.4,59.09707046]
[1673292807428,0.0429297,1333.5,1333.4,60.78307046]
[1673292808231,0.0429297,1333.5,1333.4,56.14606442]
[1673292810275,0.0429297,1333.5,1333.4,57.26898258]
[1673292810915,0.0429297,1333.5,1333.4,56.14606442]
[1673292811275,0.0429297,1333.5,1333.4,57.26898258]
[1673292812079,0.0429297,1333.5,1333.4,56.14606442]
[1673292814703,0.0429297,1333.5,1333.4,57.83806442]
[1673292815072,0.0429297,1333.5,1333.4,58.96098258]
[1673292815726,0.0429297,1333.5,1333.4,57.83806442]
[1673292818246,0.0429297,1333.5,1333.4,58.36206442]
[1673292820282,0.0429297,1333.5,1333.4,59.48498258]
[1673292821411,0.0429297,1333.5,1333.4,58.36206442]
[1673292821620,0.0429297,1333.5,1333.4,59.48498258]
[1673292823972,0.0429297,1333.5,1333.4,63.98898258]
[1673292824121,0.0429297,1333.5,1333.4,71.62598862]
[1673292826903,0.0429297,1333.5,1333.4,73.31036585]
[1673292827114,0.3897989,1333.7,1333.4,74.38863755]
[1673292827282,0.3897989,1333.7,1333.6,27.48966064]
[1673292827492,0.3897989,1333.7,1333.6,60.76638818]
[1673292828458,0.3897989,1333.7,1333.6,60.73533956]
[1673292829917,0.3897989,1333.7,1333.6,58.9690807]
[1673292830275,0.3897989,1333.7,1333.6,81.77701606]
[1673292831002,0.3897989,1333.7,1333.6,81.78449397]
[1673292831905,0.3897989,1333.7,1333.6,75.38136931]
[1673292832161,0.3897989,1333.7,1333.6,73.91201099]
[1673292832330,0.3897989,1333.7,1333.6,61.90951099]
[1673292833210,0.3897989,1333.7,1333.6,51.02701099]
[1673292833370,0.3897989,1333.7,1333.6,58.52551099]
[1673292837772,0.3897989,1333.7,1333.6,51.02701099]
[1673292837930,0.3897989,1333.7,1333.6,58.52551099]
[1673292838922,0.3897989,1333.7,1333.6,76.85460703]
[1673292839090,0.3897989,1333.7,1333.6,76.85506049]
[1673292840257,0.3897989,1333.7,1333.6,75.17068326]
[1673292840810,0.3897989,1333.7,1333.6,76.85506049]
[1673292843496,0.3897989,1333.7,1333.6,84.35356049]
[1673292845296,0.3897989,1333.7,1333.6,84.3536153]
[1673292846254,0.3897989,1333.7,1333.6,84.96028223]
[1673292846484,0.3897989,1333.7,1333.6,83.275905]
[1673292846799,0.3897989,1333.7,1333.6,84.96028223]
[1673292847023,0.37169579,1333.8,1333.6,85.71663941]
[1673292847340,0.37169579,1333.8,1333.7,52.52407828]
[1673292847487,0.37169579,1333.8,1333.7,36.84614789]
[1673292847908,0.37169579,1333.8,1333.7,38.1135427]
[1673292848150,0.37169579,1333.8,1333.7,39.38091304]
[1673292848549,0.37169579,1333.8,1333.7,38.1135427]
[1673292849327,0.37169579,1333.8,1333.7,45.6114727]
[1673292849647,0.37169579,1333.8,1333.7,30.57490719]
[1673292851286,0.07334083,1333.8,1333.7,30.57490719]
[1673292851639,0.07334083,1333.8,1333.7,38.07283719]
[1673292851862,3.56234083,1333.8,1333.7,23.07697719]
[1673292852071,6.93984461,1333.8,1333.7,5.08111719]
[1673292852368,7.00584461,1333.8,1333.7,5.08111719]
[1673292853178,8.68284461,1333.8,1333.7,1.28345655]
[1673292853428,8.68284461,1333.8,1333.7,1.26739481]
[1673292853580,10.35709371,1333.8,1333.7,1.26739481]
[1673292853790,10.35839741,1333.8,1333.7,1.26739481]
[1673292855687,10.35839741,1333.8,1333.7,8.76532481]
[1673292855935,10.35839741,1333.8,1333.7,8.78138655]
[1673292856311,10.35839741,1333.8,1333.7,8.65587561]
[1673292856574,9.24267619,1333.8,1333.7,16.15380561]
[1673292856783,11.47500832,1333.8,1333.7,16.15380561]
[1673292857151,9.24267619,1333.8,1333.7,16.15380561]
[1673292857411,10.35856735,1333.8,1333.7,16.15380561]
[1673292859366,10.35844899,1333.8,1333.7,16.15380561]
[1673292859625,10.35844899,1333.8,1333.7,8.65587561]
[1673292859932,39.71970785,1333.8,1333.7,1.15794561]
[1673292860111,42.71970785,1333.8,1333.7,1.14188387]
[1673292860318,41.02086203,1333.8,1333.7,1.14188387]
[1673292860534,43.80949387,1333.8,1333.7,1.14188387]
[1673292861184,39.18623827,1333.8,1333.7,1.14188387]
[1673292861355,18.92373238,1333.8,1333.7,1.14188387]
[1673292861566,17.83216304,1333.8,1333.7,1.14188387]
[1673292862035,15.0435312,1333.8,1333.7,1.14188387]
[1673292862202,16.71575536,1333.8,1333.7,1.14188387]
[1673292863291,14.48615125,1333.8,1333.7,1.14188387]
[1673292863471,13.48815125,1333.8,1333.7,1.14188387]
[1673292863897,12.14415125,1333.8,1333.7,1.14188387]
[1673292864329,36.86586536,1333.8,1333.7,1.14188387]
[1673292864538,37.9574347,1333.8,1333.7,1.14188387]
[1673292867502,35.72783059,1333.8,1333.7,1.14188387]
[1673292867869,20.73309059,1333.8,1333.7,1.14188387]
[1673292868080,6.51334503,1333.8,1333.7,18.93954451]
[1673292868295,4.07377569,1333.8,1333.7,18.95560625]
[1673292868543,4.00777569,1333.8,1333.7,18.95560625]
[1673292868729,2.33555153,1333.8,1333.7,18.95560625]
[1673292870623,1.18796527,1333.8,1333.7,41.44939625]
[1673292870971,0.07334083,1333.8,1333.7,47.14418188]
[1673292871246,0.07334083,1333.8,1333.7,51.78118792]
[1673292871396,0.07334083,1333.8,1333.7,47.14418188]
[1673292871812,0.07334083,1333.8,1333.7,51.78118792]
[1673292872164,0.07334083,1333.8,1333.7,47.14418188]
[1673292876345,0.07334083,1333.8,1333.7,47.15624877]
[1673292877489,0.07334083,1333.8,1333.7,18.95560625]
[1673292877853,2.92496527,1333.8,1333.7,18.95560625]
[1673292878429,1.81034083,1333.8,1333.7,18.95560625]
[1673292878906,0.07334083,1333.8,1333.7,18.95560625]
[1673292880027,0.07334083,1333.8,1333.7,41.44939625]
[1673292880240,0.07334083,1333.8,1333.7,47.14416087]
[1673292883134,3.07334083,1333.8,1333.7,47.14416087]
[1673292883284,3.07334083,1333.8,1333.7,41.44939625]
[1673292883495,3.07334083,1333.8,1333.7,33.95146625]
[1673292884341,3.07334083,1333.8,1333.7,41.44939625]
[1673292885591,4.86558517,1333.8,1333.7,33.95146625]
[1673292885835,4.86559204,1333.8,1333.7,33.95146625]
[1673292886054,4.18796527,1333.8,1333.7,41.44939625]
[1673292886449,3.07334083,1333.8,1333.7,41.44939625]
[1673292886768,3.07334083,1333.8,1333.7,33.95146625]
[1673292887285,3.07334083,1333.8,1333.7,41.44939625]
[1673292887517,4.18796527,1333.8,1333.7,41.44939625]
[1673292887849,4.18796527,1333.8,1333.7,33.95146625]
[1673292888546,4.91565397,1333.8,1333.7,33.95146625]
[1673292888750,4.18796527,1333.8,1333.7,33.95146625]
[1673292889420,4.86565484,1333.8,1333.7,33.95146625]
[1673292890210,4.86565484,1333.8,1333.7,18.95560625]
[1673292890637,4.86565484,1333.8,1333.7,26.45353625]
[1673292891105,4.86565484,1333.8,1333.7,18.95560625]
[1673292891482,6.537879,1333.8,1333.7,18.95560625]
[1673292891697,6.603879,1333.8,1333.7,18.95560625]
[1673292891897,6.603879,1333.8,1333.7,20.72709824]
[1673292892109,3.13934083,1333.8,1333.7,50.71881824]
[1673292892320,3.07334083,1333.8,1333.7,50.71881824]
[1673292897222,3.07334083,1333.8,1333.7,43.22088824]
[1673292897623,4.18796527,1333.8,1333.7,43.22088824]
[1673292898512,4.18796527,1333.8,1333.7,50.71881824]
[1673292898880,4.18796527,1333.8,1333.7,50.71681824]
[1673292898881,4.18996527,1333.8,1333.7,50.71681824]
[1673292899210,4.18796527,1333.8,1333.7,50.71881824]
[1673292900279,4.18796527,1333.8,1333.7,43.22088824]
[1673292900893,4.18796527,1333.8,1333.7,28.22502824]
[1673292901133,12.40690556,1333.8,1333.7,18.95560625]
[1673292901385,6.64775972,1333.8,1333.7,18.95560625]
[1673292901652,29.13986972,1333.8,1333.7,18.95560625]
[1673292902078,21.64249972,1333.8,1333.7,18.95560625]
[1673292902242,13.03050528,1333.8,1333.7,18.95560625]
[1673292902461,6.65053136,1333.8,1333.7,18.95560625]
[1673292903195,20.52787528,1333.8,1333.7,18.95560625]
[1673292903407,5.53313528,1333.8,1333.7,18.95560625]
[1673292903817,6.65068437,1333.8,1333.7,18.95560625]
[1673292904026,4.25688992,1333.8,1333.7,18.95560625]
[1673292904284,4.19088992,1333.8,1333.7,18.95560625]
[1673292904461,4.91303745,1333.8,1333.7,18.95560625]
[1673292905393,14.08263161,1333.8,1333.7,18.95560625]
[1673292905601,6.65126161,1333.8,1333.7,18.95560625]
[1673292906442,5.53371252,1333.8,1333.7,18.95560625]
[1673292907117,5.58371252,1333.8,1333.7,18.95560625]
[1673292907332,5.53371252,1333.8,1333.7,18.95560625]
[1673292907493,7.76331663,1333.8,1333.7,18.95560625]
[1673292908959,6.65210401,1333.8,1333.7,18.95560625]
[1673292909105,4.97987224,1333.8,1333.7,29.89891887]
[1673292909438,4.91387224,1333.8,1333.7,29.89891887]
[1673292911185,3.07334083,1333.8,1333.7,30.99997277]
[1673292911395,3.07334083,1333.8,1333.7,52.39270887]
[1673292911396,4.19172471,1333.8,1333.7,52.39270887]
[1673292911816,4.94528553,1333.8,1333.7,29.89891887]
[1673292912029,4.94528553,1333.8,1333.7,22.40098887]
[1673292912484,4.94528553,1333.8,1333.7,18.95560625]
[1673292914462,6.61750969,1333.8,1333.7,18.95560625]
[1673292914645,29.17561969,1333.8,1333.7,18.95560625]
[1673292914856,6.68365494,1333.8,1333.7,18.95560625]
[1673292916379,5.01143078,1333.8,1333.7,18.95560625]
[1673292916548,5.0115099,1333.8,1333.7,44.14616366]
[1673292916757,4.25786996,1333.8,1333.7,45.24744181]
[1673292916954,4.19186996,1333.8,1333.7,45.24744377]
[1673292917165,4.19186996,1333.8,1333.7,44.14616366]
[1673292917166,1.94554468,1333.8,1333.7,44.14616366]
[1673292918013,3.61776884,1333.8,1333.7,44.14616366]
[1673292918426,1.94554468,1333.8,1333.7,44.14616366]
[1673292918795,2.86409412,1333.8,1333.7,44.14616366]
[1673292919036,3.61776884,1333.8,1333.7,44.14616366]
[1673292919423,6.61776884,1333.8,1333.7,44.14616366]
[1673292919645,6.68376884,1333.8,1333.7,44.14616366]